fUST/lending_fUST_20250611
["ID","MTS","AMOUNT","RATE_DAILY","PERIOD"]
[365380931,1749635440580,-460.0,0.00021367,4]
[365380933,1749635440590,-460.0,0.00021367,4]
[365380935,1749635440598,-460.0,0.00021367,4]
[365380937,1749635440609,-460.0,0.00021367,4]
[365380939,1749635440618,-400.0,0.00021367,4]
[365380940,1749635440628,-460.0,0.00021367,4]
[365380943,1749635440638,-460.0,0.00021367,4]
[365380945,1749635440648,-440.0,0.00021367,4]
[365380947,1749635440657,-410.0,0.00021367,4]
[365380949,1749635440665,-460.0,0.00021367,4]
[365380951,1749635440675,-460.0,0.00021367,4]
[365380952,1749635440684,-460.0,0.00021367,4]
[365380954,1749635440694,-460.0,0.00021367,4]
[365380956,1749635440703,-460.0,0.00021367,4]
[365380958,1749635440712,-460.0,0.00021367,4]
[365380960,1749635440721,-420.0,0.00021367,4]
[365380962,1749635440730,-460.0,0.00021367,4]
[365380964,1749635440739,-460.0,0.00021367,4]
[365380966,1749635440748,-460.0,0.00021367,4]
[365380968,1749635440758,-460.0,0.00021367,4]
[365380970,1749635440767,-347.85841043,0.00021367,4]
[365380972,1749635440776,-375.74512728,0.00021367,4]
[365380974,1749635440786,-460.0,0.00021367,4]
[365380976,1749635440795,-460.0,0.00021367,4]
[365380979,1749635440804,-460.0,0.00021367,4]
[365380981,1749635440814,-460.0,0.00021367,4]
[365380983,1749635440824,-460.0,0.00021367,4]
[365380985,1749635440836,-460.0,0.00021367,4]
[365380987,1749635440845,-460.0,0.00021367,4]
[365380989,1749635440854,-460.0,0.00021367,4]
[365380991,1749635440863,-256.70956453,0.00021367,4]
[365380993,1749635440873,-460.0,0.00021367,4]
[365380995,1749635440882,-460.0,0.00021367,4]
[365380997,1749635440891,-460.0,0.00021367,4]
[365380999,1749635440900,-460.0,0.00021367,4]
[365381001,1749635440909,-500.0,0.00021373,2]
[365381003,1749635440918,-500.0,0.00021373,2]
[365381005,1749635440927,-500.0,0.00021373,2]
[365381007,1749635440936,-501.20381697,0.00021373,2]
[365381009,1749635440945,-500.0,0.00021373,2]
[365381011,1749635440954,-500.0,0.000214,2]
[365381013,1749635440963,-180.0,0.00021467,2]
[365381015,1749635440972,-170.80343031,0.00021467,2]
[365381017,1749635440981,-3404.70011492,0.00021539,2]
[365381019,1749635440991,-630.7,0.00021542,2]
[365381021,1749635441000,-444.29286152,0.00021572,2]
[365381023,1749635441009,-151.0,0.000216,4]
[365381025,1749635441019,-460.0,0.00021637,4]
[365381027,1749635441028,-460.0,0.00021637,4]
[365381029,1749635441037,-460.0,0.00021637,4]
[365381031,1749635441046,-460.0,0.00021637,4]
[365381033,1749635441055,-1917.12,0.00021637,4]
[365381035,1749635441064,-460.0,0.00021637,4]
[365381037,1749635441073,-1785.88,0.00021637,4]
[365381039,1749635441085,-460.0,0.00021637,4]
[365381041,1749635441094,-460.0,0.00021637,4]
[365381043,1749635441103,-1443.2,0.00021637,4]
[365381045,1749635441112,-2188.16,0.00021637,4]
[365381047,1749635441121,-460.0,0.00021637,4]
[365381049,1749635441130,-460.0,0.00021637,4]
[365381051,1749635441139,-460.0,0.00021637,4]
[365381053,1749635441148,-460.0,0.00021637,4]
[365381055,1749635441157,-410.0,0.00021637,4]
[365381057,1749635441167,-460.0,0.00021637,4]
[365381058,1749635441175,-1515.33,0.00021637,4]
[365381059,1749635441185,-460.0,0.00021637,4]
[365381060,1749635441194,-969.14,0.00021637,4]
[365381061,1749635441203,-1727.99,0.00021637,4]
[365381063,1749635441212,-350.0,0.00021637,4]
[365381065,1749635441221,-460.0,0.00021637,4]
[365381067,1749635441230,-420.0,0.00021637,4]
[365381069,1749635441239,-460.0,0.00021637,4]
[365381070,1749635441248,-750.51,0.00021637,4]
[365381071,1749635441257,-460.0,0.00021637,4]
[365381072,1749635441266,-376.35092718,0.00021638,4]
[365381073,1749635441275,-420.0,0.00021638,4]
[365381074,1749635441285,-441.52746359,0.00021638,2]
[365381075,1749635441294,-460.0,0.00021638,4]
[365381076,1749635441303,-460.0,0.00021638,4]
[365381077,1749635441311,-460.0,0.00021638,4]
[365381078,1749635441321,-460.0,0.00021638,4]
[365381079,1749635441332,-460.0,0.00021638,4]
[365381080,1749635441341,-460.0,0.00021638,4]
[365381081,1749635441350,-460.0,0.00021638,4]
[365381082,1749635441359,-460.0,0.00021638,4]
[365381083,1749635441368,-460.0,0.00021638,4]
[365381084,1749635441377,-460.0,0.00021638,4]
[365381085,1749635441387,-460.0,0.00021638,4]
[365381086,1749635441396,-420.0,0.00021638,4]
[365381087,1749635441405,-460.0,0.00021638,4]
[365381088,1749635441414,-338.38865541,0.00021638,4]
[365381089,1749635441423,-420.0,0.00021638,4]
[365381090,1749635441432,-460.0,0.00021638,4]
[365381091,1749635441441,-460.0,0.00021638,4]
[365381092,1749635441451,-460.0,0.00021638,4]
[365381093,1749635441460,-460.0,0.00021638,4]
[365381094,1749635441469,-460.0,0.00021638,4]
[365381095,1749635441478,-460.0,0.00021638,4]
[365381096,1749635441488,-460.0,0.00021638,4]
[365381097,1749635441496,-460.0,0.00021638,4]
[365381098,1749635441506,-460.0,0.00021638,4]
[365381099,1749635441515,-460.0,0.00021638,4]
[365381100,1749635441524,-460.0,0.00021638,4]
[365381101,1749635441537,-1076.29,0.00021638,4]
[365381102,1749635441547,-460.0,0.00021638,4]
[365381103,1749635441556,-653.87,0.00021638,4]
[365381104,1749635441565,-460.0,0.00021638,4]
[365381105,1749635441577,-768.59,0.00021638,4]
[365381106,1749635441586,-460.0,0.00021638,4]
[365381107,1749635441595,-460.0,0.00021638,4]
[365381108,1749635441605,-959.05,0.00021638,4]
[365381109,1749635441614,-420.0,0.00021638,4]
[365381110,1749635441624,-460.0,0.00021638,4]
[365381111,1749635441633,-420.0,0.00021638,4]
[365381112,1749635441643,-420.0,0.00021638,4]
[365381113,1749635441652,-460.0,0.00021638,4]
[365381114,1749635441661,-420.0,0.00021638,4]
[365381115,1749635441670,-480.0,0.00021638,4]
[365381116,1749635441679,-460.0,0.00021638,4]
[365381117,1749635441688,-380.0,0.00021638,4]
[365381118,1749635441697,-460.0,0.00021638,4]
[365381119,1749635441706,-465.12809439,0.00021638,4]
[365381120,1749635441715,-1132.89,0.00021638,4]
[365381121,1749635441726,-460.0,0.00021638,4]
[365381122,1749635441735,-460.0,0.00021638,4]
[365381123,1749635441744,-460.0,0.00021638,4]
[365381124,1749635441754,-380.0,0.00021638,4]
[365381125,1749635441763,-380.0,0.00021638,4]
[365381126,1749635441771,-460.0,0.00021638,4]
[365381127,1749635441781,-460.0,0.00021638,4]
[365381128,1749635441790,-460.0,0.00021638,4]
[365381129,1749635441799,-460.0,0.00021638,4]
[365381130,1749635441808,-994.7,0.00021638,4]
[365381131,1749635441817,-460.0,0.00021638,4]
[365381132,1749635441827,-460.0,0.00021638,4]
[365381133,1749635441837,-460.0,0.00021638,4]
[365381134,1749635441846,-460.0,0.00021638,4]
[365381135,1749635441855,-390.0,0.00021638,4]
[365381136,1749635441865,-460.0,0.00021638,4]
[365381137,1749635441874,-390.0,0.00021638,4]
[365381138,1749635441883,-599.79950307,0.00021638,4]
[365381139,1749635441893,-2825.79,0.00021638,4]
[365381140,1749635441904,-460.0,0.00021638,4]
[365381141,1749635441913,-580.96,0.00021638,4]
[365381142,1749635441921,-390.0,0.00021638,4]
[365381143,1749635441930,-460.0,0.00021638,4]
[365381144,1749635441939,-390.0,0.00021639,4]
[365381145,1749635441948,-420.0,0.00021639,4]
[365381146,1749635441957,-420.0,0.00021639,4]
[365381147,1749635441966,-420.0,0.00021639,4]
[365381148,1749635441975,-460.0,0.00021639,4]
[365381149,1749635442074,-420.0,0.00021639,4]
[365381150,1749635442084,-420.0,0.00021639,4]
[365381151,1749635442093,-420.0,0.00021639,4]
[365381152,1749635442102,-460.0,0.00021639,4]
[365381153,1749635442111,-460.0,0.00021639,4]
[365381154,1749635442120,-460.0,0.00021639,4]
[365381155,1749635442129,-460.0,0.00021639,4]
[365381156,1749635442138,-420.0,0.00021639,4]
[365381157,1749635442147,-460.0,0.00021639,4]
[365381158,1749635442156,-460.0,0.00021639,4]
[365381159,1749635442165,-460.0,0.00021639,4]
[365381160,1749635442174,-420.0,0.00021639,4]
[365381161,1749635442183,-460.0,0.00021639,4]
[365381162,1749635442197,-420.0,0.00021639,4]
[365381163,1749635442206,-460.0,0.00021639,4]
[365381164,1749635442215,-410.0,0.00021639,4]
[365381165,1749635442225,-460.0,0.00021639,4]
[365381166,1749635442234,-460.0,0.00021639,4]
[365381167,1749635442243,-460.0,0.00021639,4]
[365381168,1749635442252,-219.76687433,0.00021639,4]
[365381169,1749635442262,-380.0,0.00021639,4]
[365381170,1749635442271,-460.0,0.00021639,4]
[365381171,1749635442280,-460.0,0.00021639,4]
[365381172,1749635442289,-460.0,0.00021639,4]
[365381173,1749635442297,-460.0,0.00021639,4]
[365381174,1749635442306,-460.0,0.00021639,4]
[365381176,1749635442315,-460.0,0.00021639,4]
[365381178,1749635442324,-343.57466661,0.00021639,4]
[365381180,1749635442333,-460.0,0.00021639,4]
[365381181,1749635442342,-460.0,0.00021639,4]
[365381182,1749635442351,-570.31096563,0.00021639,4]
[365381183,1749635442360,-400.0,0.00021639,4]
[365381184,1749635442369,-460.0,0.00021639,4]
[365381185,1749635442379,-460.0,0.00021639,4]
[365381186,1749635442388,-460.0,0.00021639,4]
[365381187,1749635442397,-460.0,0.00021639,4]
[365381188,1749635442406,-460.0,0.00021639,4]
[365381189,1749635442416,-460.0,0.00021639,4]
[365381190,1749635442425,-460.0,0.00021639,4]
[365381191,1749635442435,-460.0,0.00021639,4]
[365381192,1749635442444,-460.0,0.00021639,4]
[365381193,1749635442453,-413.50776994,0.00021639,4]
[365381194,1749635442462,-460.0,0.00021639,4]
[365381195,1749635442472,-420.0,0.00021639,4]
[365381197,1749635442481,-460.0,0.00021639,4]
[365381198,1749635442490,-390.0,0.00021639,4]
[365381199,1749635442499,-460.0,0.00021639,4]
[365381200,1749635442508,-420.0,0.00021639,4]
[365381201,1749635442516,-229.02398371,0.00021639,4]
[365381202,1749635442526,-420.0,0.00021639,4]
[365381203,1749635442538,-460.0,0.00021639,4]
[365381204,1749635442547,-460.0,0.00021639,4]
[365381205,1749635442556,-460.0,0.00021639,4]
[365381206,1749635442565,-420.0,0.00021639,4]
[365381207,1749635442574,-460.0,0.00021639,4]
[365381208,1749635442584,-972.71,0.00021639,4]
[365381209,1749635442593,-500.0,0.00021639,4]
[365381210,1749635442603,-460.0,0.00021639,4]
[365381211,1749635442613,-1088.65,0.00021639,4]
[365381212,1749635442622,-460.0,0.00021639,4]
[365381213,1749635442632,-460.0,0.00021639,4]
[365381214,1749635442641,-460.0,0.00021639,4]
[365381215,1749635442651,-460.0,0.00021639,4]
[365381216,1749635442660,-388.26081988,0.00021639,4]
[365381217,1749635442669,-500.77,0.00021639,4]
[365381218,1749635442678,-460.0,0.00021639,4]
[365381219,1749635442688,-460.0,0.00021639,4]
[365381220,1749635442698,-460.0,0.00021639,4]
[365381221,1749635442707,-460.0,0.00021639,4]
[365381222,1749635442715,-420.0,0.00021639,4]
[365381223,1749635442724,-460.0,0.00021639,4]
[365381224,1749635442733,-460.0,0.00021639,4]
[365381225,1749635442742,-460.0,0.00021639,4]
[365381226,1749635442752,-420.0,0.00021639,4]
[365381227,1749635442761,-420.0,0.00021639,4]
[365381228,1749635442771,-460.0,0.00021639,4]
[365381229,1749635442779,-460.0,0.00021639,2]
[365381230,1749635442788,-420.0,0.00021639,4]
[365381231,1749635442797,-460.0,0.00021639,4]
[365381232,1749635442806,-420.0,0.00021639,4]
[365381233,1749635442815,-420.0,0.00021639,4]
[365381234,1749635442824,-460.0,0.00021639,4]
[365381235,1749635442833,-420.0,0.00021639,4]
[365381236,1749635442843,-420.0,0.00021639,4]
[365381237,1749635442852,-420.0,0.00021639,4]
[365381238,1749635442861,-420.0,0.00021639,4]
[365381239,1749635442870,-460.0,0.00021639,4]
[365381240,1749635442879,-460.0,0.00021639,4]
[365381241,1749635442888,-420.0,0.00021639,4]
[365381242,1749635442897,-460.0,0.00021639,4]
[365381243,1749635442907,-460.0,0.00021639,4]
[365381244,1749635442916,-460.0,0.00021639,4]
[365381245,1749635442925,-460.0,0.00021639,4]
[365381246,1749635442934,-427.38431094,0.00021641,4]
[365381247,1749635442943,-420.0,0.00021641,4]
[365381248,1749635442952,-460.0,0.00021641,4]
[365381250,1749635442961,-420.0,0.00021641,4]
[365381252,1749635442970,-369.81196213,0.00021641,4]
[365381254,1749635442980,-424.63933864,0.00021641,4]
[365381256,1749635442989,-420.0,0.00021641,4]
[365381258,1749635442998,-410.0,0.00021641,4]
[365381259,1749635443007,-498.33692161,0.00021641,4]
[365381260,1749635443015,-420.0,0.00021641,4]
[365381261,1749635443025,-420.0,0.00021641,4]
[365381262,1749635443034,-380.0,0.00021641,4]
[365381263,1749635443043,-487.51432381,0.00021641,4]
[365381264,1749635443051,-460.0,0.00021641,4]
[365381265,1749635443061,-420.0,0.00021641,4]
[365381266,1749635443070,-420.0,0.00021641,4]
[365381267,1749635443080,-380.0,0.00021641,4]
[365381268,1749635443089,-420.0,0.00021641,4]
[365381269,1749635443098,-420.0,0.00021641,4]
[365381270,1749635443107,-420.0,0.00021641,4]
[365381271,1749635443116,-420.0,0.00021641,4]
[365381272,1749635443125,-420.0,0.00021641,4]
[365381273,1749635443134,-420.0,0.00021641,4]
[365381274,1749635443143,-460.0,0.00021641,4]
[365381275,1749635443151,-233.29752658,0.00021641,4]
[365381276,1749635443161,-420.0,0.00021641,4]
[365381277,1749635443170,-420.0,0.00021641,4]
[365381278,1749635443179,-420.0,0.00021641,4]
[365381279,1749635443188,-420.0,0.00021641,4]
[365381280,1749635443198,-420.0,0.00021641,4]
[365381281,1749635443207,-420.0,0.00021641,4]
[365381282,1749635443216,-500.0,0.0002168,2]
[365381283,1749635443225,-516.90585791,0.0002168,2]
[365381284,1749635443234,-500.0,0.0002168,2]
[365381285,1749635443243,-500.0,0.0002168,2]
[365381286,1749635443252,-500.0,0.00021698,2]
[365381287,1749635443261,-500.0,0.00021698,2]
[365381288,1749635443270,-1688.0,0.00021758,2]
[365381289,1749635443279,-5000.0,0.00021758,2]
[365381290,1749635443288,-1250.0,0.00021758,2]
[365381291,1749635443298,-207.4,0.00021758,2]
[365381292,1749635443307,-1250.0,0.00021758,2]
[365381293,1749635443316,-1250.0,0.00021758,2]
[365381294,1749635443325,-1250.0,0.00021758,2]
[365381295,1749635443335,-411.34895219,0.00021758,2]
[365381296,1749635443344,-444.29286152,0.00021774,2]
[365381297,1749635443353,-213.77059972,0.0002179,2]
[365381298,1749635443363,-151.0,0.000218,3]
[365381299,1749635443373,-44538.43817786,0.00021811,2]
[365381300,1749635443382,-1750.456,0.00021813,2]
[365381301,1749635443392,-1354.3742117,0.00021868,2]
[365381302,1749635443402,-1929.97426837,0.000219,6]
[365381303,1749635443411,-460.0,0.00021911,4]
[365381304,1749635443420,-460.0,0.00021911,4]
[365381305,1749635443430,-460.0,0.00021911,4]
[365381306,1749635443440,-460.0,0.00021911,4]
[365381307,1749635443449,-1917.12,0.00021911,4]
[365381308,1749635443459,-168.15747046,0.00021911,4]
[365381309,1749635443468,-1785.88,0.00021911,4]
[365381310,1749635443478,-400.0,0.00021911,4]
[365381311,1749635443487,-460.0,0.00021911,4]
[365381312,1749635443497,-1443.2,0.00021911,4]
[365381313,1749635443506,-2188.16,0.00021911,4]
[365381314,1749635443516,-460.0,0.00021911,4]
[365381315,1749635443525,-460.0,0.00021911,4]
[365381316,1749635443538,-400.0,0.00021911,4]
[365381317,1749635443548,-400.0,0.00021911,4]
[365381318,1749635443558,-460.0,0.00021911,4]
[365381319,1749635443568,-1515.33,0.00021911,4]
[365381320,1749635443578,-460.0,0.00021911,4]
[365381321,1749635443588,-969.14,0.00021911,4]
[365381322,1749635443598,-1727.99,0.00021911,4]
[365381323,1749635443608,-400.0,0.00021911,4]
[365381324,1749635443617,-400.0,0.00021911,4]
[365381325,1749635443627,-750.51,0.00021911,4]
[365381326,1749635443636,-400.0,0.00021911,4]
[365381327,1749635443646,-400.0,0.00021912,4]
[365381328,1749635443655,-400.0,0.00021912,4]
[365381329,1749635443664,-460.0,0.00021912,4]
[365381330,1749635443673,-460.0,0.00021912,4]
[365381331,1749635443682,-400.0,0.00021912,4]
[365381332,1749635443691,-460.0,0.00021912,4]
[365381333,1749635443701,-460.0,0.00021912,4]
[365381334,1749635443710,-400.0,0.00021912,4]
[365381335,1749635443719,-400.0,0.00021912,4]
[365381336,1749635443729,-460.0,0.00021912,4]
[365381337,1749635443738,-400.0,0.00021912,4]
[365381338,1749635443747,-400.0,0.00021912,4]
[365381339,1749635443757,-400.0,0.00021912,4]
[365381340,1749635443766,-400.0,0.00021912,4]
[365381341,1749635443776,-460.0,0.00021912,4]
[365381342,1749635443785,-460.0,0.00021912,4]
[365381343,1749635443795,-460.0,0.00021912,4]
[365381344,1749635443804,-460.0,0.00021912,4]
[365381345,1749635443814,-460.0,0.00021912,4]
[365381346,1749635443823,-400.0,0.00021912,4]
[365381347,1749635443833,-460.0,0.00021912,4]
[365381348,1749635443842,-400.0,0.00021912,4]
[365381349,1749635443851,-528.19750712,0.00021912,4]
[365381350,1749635443860,-1076.29,0.00021912,4]
[365381351,1749635443870,-460.0,0.00021912,4]
[365381352,1749635443879,-653.87,0.00021912,4]
[365381353,1749635443888,-460.0,0.00021912,4]
[365381354,1749635443897,-768.59,0.00021912,4]
[365381355,1749635443907,-496.72,0.00021912,4]
[365381356,1749635443916,-400.0,0.00021912,4]
[365381357,1749635443925,-959.05,0.00021912,4]
[365381358,1749635443934,-460.0,0.00021912,4]
[365381359,1749635443943,-400.0,0.00021912,4]
[365381360,1749635443953,-460.0,0.00021912,4]
[365381361,1749635443962,-460.0,0.00021912,4]
[365381362,1749635443971,-1132.89,0.00021912,4]
[365381363,1749635443980,-460.0,0.00021912,4]
[365381364,1749635443989,-460.0,0.00021912,4]
[365381365,1749635443998,-460.0,0.00021912,4]
[365381366,1749635444007,-460.0,0.00021912,4]
[365381367,1749635444017,-261.96362287,0.00021912,4]
[365381368,1749635444026,-460.0,0.00021912,4]
[365381369,1749635444035,-350.0,0.00021912,4]
[365381370,1749635444044,-994.7,0.00021912,4]
[365381371,1749635444054,-400.0,0.00021912,4]
[365381372,1749635444063,-460.0,0.00021912,4]
[365381373,1749635444073,-400.0,0.00021912,4]
[365381374,1749635444083,-372.87303034,0.00021912,4]
[365381375,1749635444092,-400.0,0.00021912,4]
[365381376,1749635444102,-2825.79,0.00021912,4]
[365381377,1749635444112,-400.0,0.00021912,4]
[365381378,1749635444121,-580.96,0.00021912,4]
[365381379,1749635444131,-400.0,0.00021912,4]
[365381380,1749635444140,-460.0,0.00021913,4]
[365381381,1749635444149,-180.0,0.00021913,4]
[365381382,1749635444244,-400.0,0.00021913,4]
[365381383,1749635444254,-460.0,0.00021913,4]
[365381384,1749635444263,-400.0,0.00021913,4]
[365381385,1749635444273,-400.0,0.00021913,4]
[365381386,1749635444282,-400.0,0.00021913,4]
[365381387,1749635444291,-400.0,0.00021913,4]
[365381388,1749635444300,-460.0,0.00021913,4]
[365381389,1749635444310,-380.0,0.00021913,4]
[365381390,1749635444319,-460.0,0.00021913,4]
[365381391,1749635444329,-400.0,0.00021913,4]
[365381392,1749635444339,-400.0,0.00021913,4]
[365381393,1749635444350,-400.0,0.00021913,4]
[365381394,1749635444359,-400.0,0.00021913,4]
[365381395,1749635444370,-400.0,0.00021913,4]
[365381396,1749635444380,-400.0,0.00021913,4]
[365381397,1749635444390,-400.0,0.00021913,4]
[365381398,1749635444400,-460.0,0.00021913,4]
[365381399,1749635444409,-400.0,0.00021913,4]
[365381400,1749635444419,-327.48791154,0.00021913,4]
[365381401,1749635444428,-460.0,0.00021913,4]
[365381402,1749635444438,-460.0,0.00021913,4]
[365381403,1749635444447,-460.0,0.00021913,4]
[365381404,1749635444457,-400.0,0.00021913,4]
[365381405,1749635444467,-400.0,0.00021913,4]
[365381406,1749635444476,-460.0,0.00021913,4]
[365381407,1749635444486,-350.0,0.00021913,4]
[365381408,1749635444495,-460.0,0.00021913,4]
[365381409,1749635444505,-460.0,0.00021913,4]
[365381410,1749635444514,-350.0,0.00021913,4]
[365381411,1749635444524,-360.0,0.00021913,4]
[365381412,1749635444537,-400.0,0.00021913,4]
[365381413,1749635444546,-340.0,0.00021913,4]
[365381414,1749635444556,-460.0,0.00021913,4]
[365381415,1749635444566,-400.0,0.00021913,4]
[365381416,1749635444575,-460.0,0.00021913,4]
[365381417,1749635444586,-972.71,0.00021913,4]
[365381418,1749635444596,-507.48787125,0.00021913,4]
[365381419,1749635444606,-460.0,0.00021913,4]
[365381420,1749635444616,-1088.65,0.00021913,4]
[365381421,1749635444626,-460.0,0.00021913,4]
[365381422,1749635444636,-460.0,0.00021913,4]
[365381423,1749635444645,-400.0,0.00021913,4]
[365381424,1749635444654,-400.0,0.00021913,4]
[365381425,1749635444664,-500.77,0.00021913,4]
[365381426,1749635444674,-460.0,0.00021913,4]
[365381427,1749635444685,-460.0,0.00021913,4]
[365381428,1749635444694,-460.0,0.00021913,4]
[365381429,1749635444703,-460.0,0.00021913,4]
[365381430,1749635444713,-400.0,0.00021913,4]
[365381431,1749635444723,-400.0,0.00021913,4]
[365381432,1749635444732,-460.0,0.00021913,4]
[365381433,1749635444741,-460.0,0.00021913,4]
[365381434,1749635444751,-460.0,0.00021913,2]
[365381435,1749635444760,-460.0,0.00021913,4]
[365381436,1749635444769,-237.46854865,0.00021913,4]
[365381437,1749635444779,-460.0,0.00021913,4]
[365381438,1749635444788,-400.0,0.00021913,4]
[365381439,1749635444797,-587.29,0.00021913,4]
[365381440,1749635444806,-400.0,0.00021913,4]
[365381441,1749635444817,-400.0,0.00021913,4]
[365381442,1749635444825,-400.0,0.00021913,4]
[365381443,1749635444837,-545.8,0.00021914,3]
[365381444,1749635444846,-400.0,0.00021915,4]
[365381445,1749635444855,-460.0,0.00021915,4]
[365381446,1749635444864,-400.0,0.00021915,4]
[365381447,1749635444874,-500.0,0.00021917,4]
[365381448,1749635444883,-504.312287,0.00021917,4]
[365381449,1749635444893,-500.0,0.00021917,2]
[365381450,1749635444902,-161.05299737,0.00021918,2]
[365381451,1749635444912,-521.35746861,0.00021921,2]
[365381452,1749635444921,-500.0,0.00021921,2]
[365381453,1749635444931,-3404.70011491,0.00021979,2]
[365381454,1749635444940,-169.21,0.00021986,2]
[365381455,1749635444950,-171.0,0.00022,2]
[365381456,1749635444959,-256.0,0.00022,2]
[365381457,1749635444969,-1929.9742682,0.00022003,6]
[365381458,1749635444978,-444.29286152,0.00022055,2]
[365381459,1749635444987,-365.0707398,0.00022082,2]
[365381460,1749635444996,-365.0707398,0.00022082,2]
[365381461,1749635445006,-365.0707398,0.00022082,2]
[365381462,1749635445015,-151.0,0.000221,8]
[365381463,1749635445025,-1929.9742682,0.00022107,6]
[365381464,1749635445034,-365.0707398,0.0002211,2]
[365381465,1749635445043,-460.0,0.00022185,4]
[365381466,1749635445052,-460.0,0.00022185,4]
[365381467,1749635445062,-460.0,0.00022185,4]
[365381468,1749635445071,-460.0,0.00022185,4]
[365381469,1749635445081,-1917.12,0.00022185,4]
[365381470,1749635445091,-1785.88,0.00022185,4]
[365381471,1749635445101,-360.0,0.00022185,4]
[365381472,1749635445110,-1443.2,0.00022185,4]
[365381473,1749635445119,-2188.16,0.00022185,4]
[365381474,1749635445129,-460.0,0.00022185,4]
[365381475,1749635445138,-460.0,0.00022185,4]
[365381476,1749635445148,-460.0,0.00022185,4]
[365381477,1749635445157,-1515.33,0.00022185,4]
[365381478,1749635445167,-460.0,0.00022185,4]
[365381479,1749635445177,-969.14,0.00022185,4]
[365381480,1749635445186,-1727.99,0.00022185,4]
[365381481,1749635445195,-750.51,0.00022185,4]
[365381482,1749635445204,-460.0,0.00022186,4]
[365381483,1749635445212,-443.07,0.00022186,4]
[365381484,1749635445221,-460.0,0.00022186,4]
[365381485,1749635445231,-340.0,0.00022186,4]
[365381486,1749635445240,-460.0,0.00022186,4]
[365381487,1749635445249,-460.0,0.00022186,4]
[365381488,1749635445258,-460.0,0.00022186,4]
[365381489,1749635445268,-460.0,0.00022186,4]
[365381490,1749635445278,-460.0,0.00022186,4]
[365381491,1749635445287,-460.0,0.00022186,4]
[365381493,1749635445296,-460.0,0.00022186,4]
[365381494,1749635445305,-1076.29,0.00022186,4]
[365381496,1749635445314,-577.1189379,0.00022186,4]
[365381498,1749635445325,-653.87,0.00022186,4]
[365381499,1749635445335,-460.0,0.00022186,4]
[365381500,1749635445345,-768.59,0.00022186,4]
[365381501,1749635445354,-959.05,0.00022186,4]
[365381502,1749635445362,-460.0,0.00022186,4]
[365381503,1749635445370,-460.0,0.00022186,4]
[365381504,1749635445379,-460.0,0.00022186,4]
[365381505,1749635445389,-1132.89,0.00022186,4]
[365381506,1749635445398,-460.0,0.00022186,4]
[365381507,1749635445408,-245.98323056,0.00022186,4]
[365381508,1749635445418,-460.0,0.00022186,4]
[365381509,1749635445428,-460.0,0.00022186,4]